Workbook

Sheet Damhusåen
A1: Vandområde | C1: Damhusåen | BH1: Vandområde | BJ1: Damhusåen
A3: Udlednings nr. | C3: UD10b | D3: UD10d | E3: UD11b | F3: UD12 | G3: UD13 | H3: UD14 | I3: UD15 | J3: UD16 | K3: UD17 | L3: UD18 | M3: UD19b | N3: UD20b | O3: UD21 | P3: UD21b | Q3: UD24 | BH3: Udlednings nr. | BJ3: UD10b | BK3: UD10d | BL3: UD11b | BM3: UD12 | BN3: UD13 | BO3: UD14 | BP3: UD15 | BQ3: UD16 | BR3: UD17 | BS3: UD18 | BT3: UD19b | BU3: UD20b | BV3: UD21 | BW3: UD21b | BX3: UD24 | BY3: Sum
A4: Adresse | C4: Nødoverløb Damhusåens renseanlæg | D4: Hovedoverløb Damhus-ledning | E4: Åhaven | F4: Sønderkær | G4: Vigerslev Allé | H4: Gårdstedet | I4: Heldbovej | J4: Lykkebovej | K4: Landlystvej | L4: Skyttegårdsvej | M4: Sandhusvej | N4: Hvidovre station | O4: Vigerslev-parken N for Dæmningen | P4: Nødoverløb Torpedo-bygværket | Q4: Roskildevej | R4: SUM | BH4: Adresse | BJ4: Nødoverløb Damhusåens renseanlæg | BK4: Hovedoverløb Damhus-ledning | BL4: Åhaven | BM4: Sønderkær | BN4: Vigerslev Allé | BO4: Gårdstedet | BP4: Heldbovej | BQ4: Lykkebovej | BR4: Landlystvej | BS4: Skyttegårdsvej | BT4: Sandhusvej | BU4: Hvidovre station | BV4: Vigerslev-parken N for Dæmningen | BW4: Nødoverløb ved Torpedo-bygværket | BX4: Roskildevej | BY4: -
A5: Kloakeringstype | B5: Status | C5: Fælles | D5: Fælles | E5: Fælles | F5: Fælles | G5: Fælles | H5: Fælles | I5: Fælles | J5: Fælles | K5: Fælles | L5: Fælles | M5: Fælles | N5: Fælles | O5: Fælles | P5: Fælles | Q5: Fælles | R5: - | BH5: Kloakeringstype | BI5: Status | BJ5: Fælles | BK5: Fælles | BL5: Fælles | BM5: Fælles | BN5: Fælles | BO5: Fælles | BP5: Fælles | BQ5: Fælles | BR5: Fælles | BS5: Fælles | BT5: Fælles | BU5: Fælles | BV5: Fælles | BW5: Fælles | BX5: Fælles | BY5: -
B6: Plan | C6: Fælles | D6: Fælles | E6: Fælles | F6: Fælles | G6: Fælles | H6: Fælles | I6: Fælles | J6: Fælles | K6: Fælles | L6: Fælles | M6: Fælles | N6: Fælles | O6: Fælles | P6: Fælles | Q6: Fælles | R6: - | BI6: Plan | BJ6: Fælles | BK6: Fælles | BL6: Fælles | BM6: Fælles | BN6: Fælles | BO6: Fælles | BP6: Fælles | BQ6: Fælles | BR6: Fælles | BS6: Fælles | BT6: Fælles | BU6: Fælles | BV6: Fælles | BW6: Fælles | BX6: Fælles | BY6: -
B7: Strategi | C7: Fælles | D7: Fælles | E7: Fælles | F7: Fælles | G7: Fælles | H7: Fælles | I7: Fælles | J7: Fælles | K7: Fælles | L7: Fælles | M7: Fælles | N7: Fælles | O7: Fælles | P7: Fælles | Q7: Fælles | R7: - | BI7: Strategi | BJ7: Fælles | BK7: Fælles | BL7: Fælles | BM7: Fælles | BN7: Fælles | BO7: Fælles | BP7: Fælles | BQ7: Fælles | BR7: Fælles | BS7: Fælles | BT7: Fælles | BU7: Fælles | BV7: Fælles | BW7: Fælles | BX7: Fælles | BY7: -
A8: Reduceret areal ha | B8: Status | C8: 62.09627 | D8: 0 | E8: 4.926299 | F8: 13.292068 | G8: 9.063189 | H8: 1.454076 | I8: 1.523395 | J8: 3.503314 | K8: 1.93898 | L8: 4.850912 | M8: 2.3 | N8: 1.07056 | O8: 284.5 | P8: 0 | Q8: 0 | R8: =SUM(Tabel15[[#This Row],[Nødoverløb Damhusåens renseanlæg]:[Roskildevej]]) -> 390.519063 | BH8: Reduceret areal ha | BI8: Status | BJ8: 62.09627 | BK8: 0 | BL8: 4.926299 | BM8: 13.292068 | BN8: 9.063189 | BO8: 1.454076 | BP8: 1.523395 | BQ8: 3.503314 | BR8: 1.93898 | BS8: 4.850912 | BT8: 2.3 | BU8: 1.07056 | BV8: 284.5 | BW8: 0 | BX8: 0 | BY8: =SUM(BJ8:BX8) -> 390.519063
B9: Plan | C9: 62.09627 | D9: 0 | E9: 4.926299 | F9: 13.292068 | G9: 9.063189 | H9: 1.454076 | I9: 1.523395 | J9: 3.503314 | K9: 1.93898 | L9: 4.850912 | M9: 2.3 | N9: 1.07056 | O9: 284.5 | P9: 0 | Q9: 0 | R9: =SUM(Tabel15[[#This Row],[Nødoverløb Damhusåens renseanlæg]:[Roskildevej]]) -> 390.519063 | BI9: Plan | BJ9: 62.09627 | BK9: 0 | BL9: 4.926299 | BM9: 13.292068 | BN9: 9.063189 | BO9: 1.454076 | BP9: 1.523395 | BQ9: 3.503314 | BR9: 1.93898 | BS9: 4.850912 | BT9: 2.3 | BU9: 1.07056 | BV9: 284.5 | BW9: 0 | BX9: 0 | BY9: 390.519063
B10: Strategi | C10: 62.09627 | D10: 0 | E10: 4.926299 | F10: 13.292068 | G10: 9.063189 | H10: 1.454076 | I10: 1.523395 | J10: 3.503314 | K10: 1.93898 | L10: 4.850912 | M10: 2.3 | N10: 1.07056 | O10: 284.5 | P10: 0 | Q10: 0 | R10: =SUM(Tabel15[[#This Row],[Nødoverløb Damhusåens renseanlæg]:[Roskildevej]]) -> 390.519063 | BI10: Strategi | BJ10: 62.09627 | BK10: 0 | BL10: 4.926299 | BM10: 13.292068 | BN10: 9.063189 | BO10: 1.454076 | BP10: 1.523395 | BQ10: 3.503314 | BR10: 1.93898 | BS10: 4.850912 | BT10: 2.3 | BU10: 1.07056 | BV10: 284.5 | BW10: 0 | BX10: 0 | BY10: 390.519063
A11: Maks udledning l/s | B11: Status | C11: 5000 | D11: 5000 | E11: 700 | F11: 3000 | G11: 1200 | H11: 500 | I11: 100 | J11: 300 | K11: 300 | L11: 500 | M11: 500 | N11: 200 | O11: 1500 | P11: 0 | Q11: 1000 | R11: =SUM(Tabel15[[#This Row],[Nødoverløb Damhusåens renseanlæg]:[Roskildevej]]) -> 19800 | BH11: Maks udledning l/s | BI11: Status | BJ11: 5000 | BK11: 5000 | BL11: 700 | BM11: 3000 | BN11: 1200 | BO11: 500 | BP11: 100 | BQ11: 300 | BR11: 300 | BS11: 500 | BT11: 500 | BU11: 200 | BV11: 1500 | BW11: 0 | BX11: 1000 | BY11: 19800
B12: Plan | C12: 5000 | D12: 5000 | E12: 700 | F12: 3000 | G12: 1200 | H12: 500 | I12: 100 | J12: 300 | K12: 300 | L12: 500 | M12: 500 | N12: 200 | O12: 1500 | P12: 0 | Q12: 1000 | R12: =SUM(Tabel15[[#This Row],[Nødoverløb Damhusåens renseanlæg]:[Roskildevej]]) -> 19800 | BI12: Plan | BJ12: 5000 | BK12: 5000 | BL12: 700 | BM12: 3000 | BN12: 1200 | BO12: 500 | BP12: 100 | BQ12: 300 | BR12: 300 | BS12: 500 | BT12: 500 | BU12: 200 | BV12: 1500 | BW12: 0 | BX12: 1000 | BY12: 19800
B13: Strategi | C13: 5000 | D13: 5000 | E13: 700 | F13: 3000 | G13: 1200 | H13: 500 | I13: 100 | J13: 300 | K13: 300 | L13: 500 | M13: 500 | N13: 200 | O13: 1500 | P13: 0 | Q13: 1000 | R13: =SUM(Tabel15[[#This Row],[Nødoverløb Damhusåens renseanlæg]:[Roskildevej]]) -> 19800 | BI13: Strategi | BJ13: 5000 | BK13: 5000 | BL13: 700 | BM13: 3000 | BN13: 1200 | BO13: 500 | BP13: 100 | BQ13: 300 | BR13: 300 | BS13: 500 | BT13: 500 | BU13: 200 | BV13: 1500 | BW13: 0 | BX13: 1000 | BY13: 19800
A14: Overløbshyppighed antal/år | B14: Status | C14: 2 | D14: 1 | E14: 0.5 | F14: 0.1 | G14: 0.1 | H14: 0.1 | I14: 0.1 | J14: 0.1 | K14: 0.25 | L14: 0.3 | M14: 0.1 | N14: 0.1 | O14: 0.2 | P14: 0 | Q14: 13 | R14: =SUM(Tabel15[[#This Row],[Nødoverløb Damhusåens renseanlæg]:[Roskildevej]]) -> 17.95 | BH14: Overløbshyppighed antal/år | BI14: Status | BJ14: 2 | BK14: 1 | BL14: 0.5 | BM14: 0.1 | BN14: 0.1 | BO14: 0.1 | BP14: 0.1 | BQ14: 0.1 | BR14: 0.25 | BS14: 0.3 | BT14: 0.1 | BU14: 0.1 | BV14: 0.2 | BW14: 0 | BX14: 13 | BY14: -
B15: Plan | C15: 2 | D15: 1 | E15: 0.5 | F15: 0.1 | G15: 0.1 | H15: 0.1 | I15: 0.1 | J15: 0.1 | K15: 0.25 | L15: 0.3 | M15: 0.1 | N15: 0.1 | O15: 0.2 | P15: 0 | Q15: 13 | R15: =SUM(Tabel15[[#This Row],[Nødoverløb Damhusåens renseanlæg]:[Roskildevej]]) -> 17.95 | BI15: Plan | BJ15: 2 | BK15: 1 | BL15: 0.5 | BM15: 0.1 | BN15: 0.1 | BO15: 0.1 | BP15: 0.1 | BQ15: 0.1 | BR15: 0.25 | BS15: 0.3 | BT15: 0.1 | BU15: 0.1 | BV15: 0.2 | BW15: 0 | BX15: 13 | BY15: -
B16: Strategi | C16: 1 | D16: 0.1 | E16: 0.05 | F16: 0.01 | G16: 0.01 | H16: 0.01 | I16: 0.01 | J16: 0.01 | K16: 0.025 | L16: 0.03 | M16: 0.01 | N16: 0.01 | O16: 0.02 | P16: 0 | Q16: 10 | R16: =SUM(Tabel15[[#This Row],[Nødoverløb Damhusåens renseanlæg]:[Roskildevej]]) -> 11.295 | BI16: Strategi | BJ16: 1 | BK16: 0.1 | BL16: 0.05 | BM16: 0.01 | BN16: 0.01 | BO16: 0.01 | BP16: 0.01 | BQ16: 0.01 | BR16: 0.025 | BS16: 0.03 | BT16: 0.01 | BU16: 0.01 | BV16: 0.02 | BW16: 0 | BX16: 10 | BY16: -
A17: Vand m3/år | B17: Status | C17: 3408 | D17: 15000 | E17: 500 | F17: 1000 | G17: 100 | H17: 100 | I17: 100 | J17: 100 | K17: 500 | L17: 100 | M17: 100 | N17: 100 | O17: 500 | P17: 0 | Q17: 8734 | R17: =SUM(Tabel15[[#This Row],[Nødoverløb Damhusåens renseanlæg]:[Roskildevej]]) -> 30342 | BH17: Vand m3/år | BI17: Status | BJ17: 3408 | BK17: 15000 | BL17: 500 | BM17: 1000 | BN17: 100 | BO17: 100 | BP17: 100 | BQ17: 100 | BR17: 500 | BS17: 100 | BT17: 100 | BU17: 100 | BV17: 500 | BW17: 0 | BX17: 8734 | BY17: =SUM(BJ17:BX17) -> 30342
B18: Plan | C18: 3408 | D18: 15000 | E18: 500 | F18: 1000 | G18: 100 | H18: 100 | I18: 100 | J18: 100 | K18: 500 | L18: 100 | M18: 100 | N18: 100 | O18: 500 | P18: 0 | Q18: 8734 | R18: =SUM(Tabel15[[#This Row],[Nødoverløb Damhusåens renseanlæg]:[Roskildevej]]) -> 30342 | BI18: Plan | BJ18: 3408 | BK18: 15000 | BL18: 500 | BM18: 1000 | BN18: 100 | BO18: 100 | BP18: 100 | BQ18: 100 | BR18: 500 | BS18: 100 | BT18: 100 | BU18: 100 | BV18: 500 | BW18: 0 | BX18: 8734 | BY18: 30342
B19: Strategi | C19: 1704 | D19: 1500 | E19: 50 | F19: 100 | G19: 10 | H19: 10 | I19: 10 | J19: 10 | K19: 50 | L19: 10 | M19: 10 | N19: 10 | O19: 50 | P19: 0 | Q19: 780 | R19: =SUM(Tabel15[[#This Row],[Nødoverløb Damhusåens renseanlæg]:[Roskildevej]]) -> 4304 | BI19: Strategi | BJ19: 1704 | BK19: 1500 | BL19: 50 | BM19: 100 | BN19: 10 | BO19: 10 | BP19: 10 | BQ19: 10 | BR19: 50 | BS19: 10 | BT19: 10 | BU19: 10 | BV19: 50 | BW19: 0 | BX19: 780 | BY19: 4304
A20: COD kg/år | B20: Status | C20: 170.4 | D20: 750 | E20: 25 | F20: 50 | G20: 5 | H20: 5 | I20: 5 | J20: 5 | K20: 25 | L20: 5 | M20: 5 | N20: 5 | O20: 25 | P20: 0 | Q20: 436.7 | R20: =SUM(Tabel15[[#This Row],[Nødoverløb Damhusåens renseanlæg]:[Roskildevej]]) -> 1517.1 | BH20: COD kg/år | BI20: Status | BJ20: 170 | BK20: 750 | BL20: 25 | BM20: 50 | BN20: 5 | BO20: 5 | BP20: 5 | BQ20: 5 | BR20: 25 | BS20: 5 | BT20: 5 | BU20: 5 | BV20: 25 | BW20: 0 | BX20: 437 | BY20: 1517
B21: Plan | C21: 170.4 | D21: 750 | E21: 25 | F21: 50 | G21: 5 | H21: 5 | I21: 5 | J21: 5 | K21: 25 | L21: 5 | M21: 5 | N21: 5 | O21: 25 | P21: 0 | Q21: 436.7 | R21: =SUM(Tabel15[[#This Row],[Nødoverløb Damhusåens renseanlæg]:[Roskildevej]]) -> 1517.1 | BI21: Plan | BJ21: 170 | BK21: 750 | BL21: 25 | BM21: 50 | BN21: 5 | BO21: 5 | BP21: 5 | BQ21: 5 | BR21: 25 | BS21: 5 | BT21: 5 | BU21: 5 | BV21: 25 | BW21: 0 | BX21: 437 | BY21: 1517
B22: Strategi | C22: 85.2 | D22: 75 | E22: 2 | F22: 5.9375 | G22: 0.5 | H22: 0.5 | I22: 0.5 | J22: 0.5 | K22: 2.5 | L22: 0.5 | M22: 0.5 | N22: 0.5 | O22: 2.5 | P22: 0 | Q22: 39 | R22: =SUM(Tabel15[[#This Row],[Nødoverløb Damhusåens renseanlæg]:[Roskildevej]]) -> 215.6375 | BI22: Strategi | BJ22: 85 | BK22: 75 | BL22: 2 | BM22: 5.9 | BN22: 0.5 | BO22: 0.5 | BP22: 0.5 | BQ22: 0.5 | BR22: 2.5 | BS22: 0.5 | BT22: 0.5 | BU22: 0.5 | BV22: 2.5 | BW22: 0 | BX22: 39 | BY22: 215.4
A23: Total N kg/år | B23: Status | C23: 6.816 | D23: 30 | E23: 1 | F23: 2 | G23: 0.2 | H23: 0.2 | I23: 0.2 | J23: 0.2 | K23: 1 | L23: 0.2 | M23: 0.2 | N23: 0.2 | O23: 1 | P23: 0 | Q23: 17.468 | R23: =SUM(Tabel15[[#This Row],[Nødoverløb Damhusåens renseanlæg]:[Roskildevej]]) -> 60.684 | BH23: Total N kg/år | BI23: Status | BJ23: 6.8 | BK23: 30 | BL23: 1 | BM23: 2 | BN23: 0.2 | BO23: 0.2 | BP23: 0.2 | BQ23: 0.2 | BR23: 1 | BS23: 0.2 | BT23: 0.2 | BU23: 0.2 | BV23: 1 | BW23: 0 | BX23: 17.5 | BY23: 60.7
B24: Plan | C24: 6.816 | D24: 30 | E24: 1 | F24: 2 | G24: 0.2 | H24: 0.2 | I24: 0.2 | J24: 0.2 | K24: 1 | L24: 0.2 | M24: 0.2 | N24: 0.2 | O24: 1 | P24: 0 | Q24: 17.468 | R24: =SUM(Tabel15[[#This Row],[Nødoverløb Damhusåens renseanlæg]:[Roskildevej]]) -> 60.684 | BI24: Plan | BJ24: 6.8 | BK24: 30 | BL24: 1 | BM24: 2 | BN24: 0.2 | BO24: 0.2 | BP24: 0.2 | BQ24: 0.2 | BR24: 1 | BS24: 0.2 | BT24: 0.2 | BU24: 0.2 | BV24: 1 | BW24: 0 | BX24: 17.5 | BY24: 60.7
B25: Strategi | C25: 3.408 | D25: 3 | E25: 0.08 | F25: 0.2375 | G25: 0.02 | H25: 0.02 | I25: 0.02 | J25: 0.02 | K25: 0.1 | L25: 0.02 | M25: 0.02 | N25: 0.02 | O25: 0.1 | P25: 0 | Q25: 1.56 | R25: =SUM(Tabel15[[#This Row],[Nødoverløb Damhusåens renseanlæg]:[Roskildevej]]) -> 8.6255 | BI25: Strategi | BJ25: 3.4 | BK25: 3 | BL25: 0.08 | BM25: 0.2 | BN25: 0.02 | BO25: 0.02 | BP25: 0.02 | BQ25: 0.02 | BR25: 0.1 | BS25: 0.02 | BT25: 0.02 | BU25: 0.02 | BV25: 0.1 | BW25: 0 | BX25: 1.6 | BY25: 8.62
A26: Total P kg/år | B26: Status | C26: 1.704 | D26: 7.5 | E26: 0.25 | F26: 0.5 | G26: 0.05 | H26: 0.05 | I26: 0.05 | J26: 0.05 | K26: 0.25 | L26: 0.05 | M26: 0.05 | N26: 0.05 | O26: 0.25 | P26: 0 | Q26: 4.367 | R26: =SUM(Tabel15[[#This Row],[Nødoverløb Damhusåens renseanlæg]:[Roskildevej]]) -> 15.171 | BH26: Total P kg/år | BI26: Status | BJ26: 1.7 | BK26: 7.5 | BL26: 0.25 | BM26: 0.5 | BN26: 0.05 | BO26: 0.05 | BP26: 0.05 | BQ26: 0.05 | BR26: 0.25 | BS26: 0.05 | BT26: 0.05 | BU26: 0.05 | BV26: 0.25 | BW26: 0 | BX26: 4.4 | BY26: 15.2
B27: Plan | C27: 1.704 | D27: 7.5 | E27: 0.25 | F27: 0.5 | G27: 0.05 | H27: 0.05 | I27: 0.05 | J27: 0.05 | K27: 0.25 | L27: 0.05 | M27: 0.05 | N27: 0.05 | O27: 0.25 | P27: 0 | Q27: 4.367 | R27: =SUM(Tabel15[[#This Row],[Nødoverløb Damhusåens renseanlæg]:[Roskildevej]]) -> 15.171 | BI27: Plan | BJ27: 1.7 | BK27: 7.5 | BL27: 0.25 | BM27: 0.5 | BN27: 0.05 | BO27: 0.05 | BP27: 0.05 | BQ27: 0.05 | BR27: 0.25 | BS27: 0.05 | BT27: 0.05 | BU27: 0.05 | BV27: 0.25 | BW27: 0 | BX27: 4.4 | BY27: 15.2
B28: Strategi | C28: 0.852 | D28: 0.75 | E28: 0.02 | F28: 0.059375 | G28: 0.005 | H28: 0.005 | I28: 0.005 | J28: 0.005 | K28: 0.025 | L28: 0.005 | M28: 0.005 | N28: 0.005 | O28: 0.025 | P28: 0 | Q28: 0.39 | R28: =SUM(Tabel15[[#This Row],[Nødoverløb Damhusåens renseanlæg]:[Roskildevej]]) -> 2.156375 | BI28: Strategi | BJ28: 0.8 | BK28: 0.75 | BL28: 0.02 | BM28: 0.06 | BN28: 0.005 | BO28: 0.005 | BP28: 0.005 | BQ28: 0.005 | BR28: 0.025 | BS28: 0.005 | BT28: 0.005 | BU28: 0.005 | BV28: 0.025 | BW28: 0 | BX28: 0.4 | BY28: =SUM(BJ28:BX28) -> 2.115
